Cogmind - Beta 13 @@@ ROGUE MODE // 2024.04.10 @ 02:02:42 Player: Sunvar Result: Destroyed by H-61 Shepherd with Heavy Assault Cannon Performance ------------- Evolutions (4) 2000 Regions Visited (10) 2000 Robots Destroyed (86) 430 Value Destroyed (2249) 2249 Prototype IDs (7) 140 Alien Tech Used (0) 0 Bonus (636) 636 TOTAL SCORE: 7455 Bonus ------- Follower Combat Kills 336 Aligned with FarCom 300 Cogmind --------- Core Integrity 0/850 Matter 141/300 Energy 100/100 System Corruption 11% Temperature Cool (0) Movement Core (50) Location -6/Factory Parts ------- > --- POWER (2) -------- (None) > --- PROPULSION (5) --- (None) > --- UTILITY (5) ------ Advanced Targeting Computer > --- WEAPON (3) ------- (None) > --- INVENTORY (5) ---- Matter Compressor (0) Flak Gun Magnetic Acceleration Cannon Peak State ------------ > --- POWER ------------ Light Nuclear Core Angular Momentum Engine > --- PROPULSION ------- Aluminum Leg Aluminum Leg Carbon-fiber Leg Carbon-fiber Leg > --- UTILITY ---------- Small Storage Unit Triangulator Advanced Targeting Computer Improved Medium Armor Plating Recalibrator > --- WEAPON ----------- Magnetic Acceleration Cannon Rocket Launcher Longsword +1 > --- INVENTORY -------- Nuclear Core Micro Nuclear Core Improved Medium Treads High-powered Shock Rifle Assault Cannon Rocket Launcher Rocket Launcher Rocket Launcher [Rating: 50] Favorites ----------- Power Ion Engine Engine Ion Engine Power Core Light Nuclear Core Propulsion Carbon-fiber Leg Treads Light Treads Leg Carbon-fiber Leg Flight Unit Nuclear Pulse Thruster Utility Small Storage Unit Device Improved Heat Sink Storage Small Storage Unit Processor Advanced Targeting Computer Protection Improved Power Shielding Weapon Rocket Launcher Energy Gun Field Laser Energy Cannon Advanced Beam Cannon Ballistic Gun Improved Assault Rifle Ballistic Cannon Magnetic Acceleration Cannon Launcher Rocket Launcher Slashing Weapon Longsword +1 Build | -11 -10 -10 -9 -9 -9 -8 -8 -8 -8 -6 ------- Run | Yrd Mat Min Mat Min Exi Min Mat Sto Rec Fac Slots Evolved 8 | . . . 2 . . . 2 . . 4 Power 1 | . . . . . . . . . . 1 Propulsion 3 | . . . 1 . . . 1 . . 1 Utility 3 | . . . 1 . . . . . . 2 Weapon 1 | . . . . . . . 1 . . . Parts Attached 76 | 6 2 1 9 4 5 5 7 12 1 24 Power 13 | 1 . 1 1 . . 1 1 . 1 7 Engine 7 | 1 . 1 1 . . 1 1 . . 2 Core 6 | . . . . . . . . . 1 5 Reactor . | . . . . . . . . . . . Propulsion 21 | 2 . . 3 2 1 3 3 2 . 5 Treads 6 | 2 . . . . . 3 . . . 1 Leg 14 | . . . 3 2 1 . 3 2 . 3 Wheel . | . . . . . . . . . . . Hover . | . . . . . . . . . . . Flight 1 | . . . . . . . . . . 1 Utility 13 | 1 1 . . 2 . 1 . 3 . 5 Device 7 | . 1 . . 2 . . . 1 . 3 Storage 1 | 1 . . . . . . . . . . Processor 3 | . . . . . . 1 . 1 . 1 Hackware . | . . . . . . . . . . . Protection 2 | . . . . . . . . 1 . 1 Artifact . | . . . . . . . . . . . Weapon 29 | 2 1 . 5 . 4 . 3 7 . 7 Energy Gun 8 | . . . 2 . 1 . 1 3 . 1 Energy Cannon 2 | . . . 1 . 1 . . . . . Ballistic Gun 6 | 2 . . . . . . . 2 . 2 Ballistic Cannon 2 | . . . . . . . . . . 2 Launcher 8 | . 1 . 1 . . . 2 2 . 2 Special Weapon . | . . . . . . . . . . . Impact Weapon . | . . . . . . . . . . . Slashing Weapon 3 | . . . 1 . 2 . . . . . Piercing Weapon . | . . . . . . . . . . . Special Melee Weapon . | . . . . . . . . . . . Unidentified Prototypes 7 | . . . 3 . 2 . . 2 . . Corrupted Parts 1 | . . . . . . . . . . 1 System Corruption 3 | . . . . . . . . . . 3 Parts Lost 43 | . . 1 4 3 . 3 8 1 . 23 Power 10 | . . 1 1 . . 1 1 . . 6 Propulsion 15 | . . . 1 1 . 2 3 1 . 7 Utility 8 | . . . . 1 . . 2 . . 5 Weapon 10 | . . . 2 1 . . 2 . . 5 Highest Loss Streak 16 | . . 1 2 3 . 3 8 1 . 16 To Critical Strikes 1 | . . . . . . . 1 . . . Average Slot Usage (%) 86 | . 92 99 82 73 77 98 76 88 100 81 Engine 8 | . 14 13 11 11 11 11 7 9 5 4 Core 2 | . . . . . . . . . 3 7 Treads 6 | . 28 28 6 . . 31 17 . . . Leg 20 | . . . 21 24 28 . 4 28 36 21 Device 7 | . 6 14 11 13 11 11 6 4 . 8 Storage 8 | . 14 14 11 11 11 11 9 9 9 4 Processor 4 | . . . . . . 10 6 2 9 7 Protection 4 | . . . . . . . . 7 9 4 Energy Gun 2 | . . . . . . . 1 8 . . Energy Cannon 2 | . . . 6 11 10 11 6 . . . Ballistic Gun 3 | . 17 14 2 . . . . 1 9 3 Launcher 7 | . 10 14 11 2 . . 8 8 9 5 Slashing Weapon 6 | . . . 1 . 5 11 9 9 9 4 Naked Turns . | . . . . . . . . . . . Heaviest Build 47 | 13 17 17 19 20 19 18 22 21 22 47 Greatest Support 65 | 40 40 40 40 30 30 60 60 55 55 65 Greatest Overweight (x) 4 | 4 . . . . . 1 3 . . 2 Average Overweight (x) . | . . . . . . . . . . . Largest Inventory Capacity 8 | 8 8 8 8 8 8 8 8 8 8 8 Average Capacity 7 | 7 8 8 8 8 8 8 8 8 8 7 Most Carried 8 | 3 8 8 8 8 8 8 8 8 8 8 Average Carried 7 | 2 6 7 7 7 7 7 7 7 7 6 Final Capacity 8 | 8 8 8 8 8 8 8 8 8 8 5 Final Carried 8 | 3 8 7 7 8 7 8 6 8 8 3 Class Distribution -------------------- 44% | Mutant 42% | Scavenger-Mutant 7% | Commander-Mutant 5% | Scavenger-Bomber Dominant Class ---------------- Mutant | -10/Materials Mutant | -10/Mines Mutant | -9/Materials Mutant | -9/Mines Mutant | -9/Exiles Mutant | -8/Mines Mutant | -8/Materials Scavenger-Mutant | -8/Storage Scavenger-Mutant | -8/Recycling Scavenger-Mutant | -6/Factory Resources | -11 -10 -10 -9 -9 -9 -8 -8 -8 -8 -6 ----------- Run | Yrd Mat Min Mat Min Exi Min Mat Sto Rec Fac Matter Collected 1670 | 212 100 34 161 148 . 157 63 390 7 398 Remotely . | . . . . . . . . . . . Salvage Created 1685 | . 229 . 243 128 . 106 266 308 . 405 Parts 117 | . 25 . 14 12 . 2 8 21 . 35 Haulers Intercepted 2 | . 1 . 1 . . . . . . . Recyclers Shooed 7 | . . . 4 . . 1 . 2 . . Parts Field Recycled . | . . . . . . . . . . . Retrieved Matter . | . . . . . . . . . . . Parts Self-Destructed . | . . . . . . . . . . . Prevented . | . . . . . . . . . . . Kills | -11 -10 -10 -9 -9 -9 -8 -8 -8 -8 -6 ------- Run | Yrd Mat Min Mat Min Exi Min Mat Sto Rec Fac Combat Hostiles Destroyed 70 | . 10 . 14 6 . 2 9 12 . 17 Melee 5 | . . . . . . 2 . 2 . 1 Guns 10 | . 5 . 1 . . . . 2 . 2 Cannons 14 | . . . 5 5 . . 1 . . 3 AOE 40 | . 5 . 7 1 . . 8 8 . 11 Classes Destroyed 13 | . 5 . 1 . . 1 1 1 . 4 Worker 8 | . 2 . . . . . 1 2 . 3 Builder 1 | . . . . . . . . . . 1 Tunneler 1 | . . . . . . . . . . 1 Hauler 2 | . 1 . 1 . . . . . . . Recycler 1 | . . . . . . . . 1 . . Mechanic 1 | . . . . . . . 1 . . . Watcher 2 | . 2 . . . . . . . . . Swarmer 36 | . 6 . 9 4 . . . 7 . 10 Grunt 20 | . 4 . 3 2 . 1 4 3 . 3 Brawler 1 | . . . . . . 1 . . . . Sentry 9 | . . . 2 . . . 5 2 . . Hunter 2 | . . . . . . . . . . 2 Programmer 2 | . . . . . . . . . . 2 Best Kill Streak 10 | . 8 . 5 4 . 2 7 6 . 10 Combat Bots Only 7 | . 5 . 4 4 . 2 6 5 . 7 Max Kills in Single Turn 6 | . 4 . 3 1 . 1 3 2 . 6 Gunslinging . | . . . . . . . . . . . Exploded 5 | . 2 . 3 1 . . 3 2 . 5 Melee 1 | . . . . . . 1 . 1 . 1 Uniques/NPCs Destroyed . | . . . . . . . . . . . Combat | -11 -10 -10 -9 -9 -9 -8 -8 -8 -8 -6 -------- Run | Yrd Mat Min Mat Min Exi Min Mat Sto Rec Fac Hostile Shots Fired 478 | . 27 6 75 44 . 14 57 42 . 213 Missed 145 | . 11 1 26 11 . 6 24 17 . 49 Damage Taken 5250 | . 197 184 599 288 . 135 557 291 . 2999 Core 1257 | . 19 28 66 76 . 33 87 82 . 866 Absorbed by Shields . | . . . . . . . . . . . Redirected to Shielding 36 | . . . . . . . . 11 . 25 Regen/Repaired (Parts) 68 | . . . . . . . . 68 . . Core Remaining (%) 76 | 100 . 81 . . . 56 . . 69 . Volleys Fired 193 | . 26 . 37 19 . 2 18 18 . 73 Largest 3 | . 2 . 2 2 . 1 2 2 . 3 Hottest 105 | . 53 . 101 101 . 68 101 96 . 105 Shots Fired 242 | . 31 . 45 20 . 2 25 31 . 88 Gun 93 | . 24 . 5 . . . . 18 . 46 Cannon 83 | . . . 24 19 . 2 10 . . 28 Launcher 66 | . 7 . 16 1 . . 15 13 . 14 Special . | . . . . . . . . . . . Kinetic 76 | . 24 . 5 . . . . . . 47 Thermal 73 | . . . 24 19 . 2 10 18 . . Explosive 66 | . 7 . 16 1 . . 15 13 . 14 Electromagnetic 27 | . . . . . . . . . . 27 Robot Hit Streak 11 | . 4 . 5 4 . 3 11 5 . 5 Robot Miss Streak 5 | . 4 . 4 2 . . 2 5 . 3 Penetration Max 1 | . . . . . . . . . . 1 Secondary Targets . | . . . . . . . . . . . Shots Hit Robots 147 | . 14 . 20 12 . 6 19 16 . 60 Core Hits 135 | . 19 . 20 9 . 3 24 23 . 37 Critical Kills 1 | . . . 1 . . . . . . . Critical Parts Destroyed 1 | . 1 . . . . . . . . . Critical Strikes 3 | . 1 . 1 . . 1 . . . . Meltdown 1 | . . . 1 . . . . . . . Destroy 1 | . 1 . . . . . . . . . Sever 1 | . . . . . . 1 . . . . Melee Attacks 11 | . . . . . . 4 . 3 . 4 Impact . | . . . . . . . . . . . Slashing 11 | . . . . . . 4 . 3 . 4 Piercing . | . . . . . . . . . . . Sneak Attacks 1 | . . . . . . . . 1 . . Combat Hostiles . | . . . . . . . . . . . Follow-up Attacks . | . . . . . . . . . . . Damage Inflicted 7074 | . 817 . 1046 325 . 191 1062 1026 . 2607 Guns 702 | . 133 . 25 . . . . 122 . 422 Cannons 1316 | . . . 266 247 . 41 185 . . 577 Explosions 4561 | . 684 . 755 78 . . 877 737 . 1430 Melee 495 | . . . . . . 150 . 167 . 178 Ramming . | . . . . . . . . . . . Kinetic 986 | . 133 . 25 . . . . . . 828 Thermal 964 | . . . 266 247 . 41 185 122 . 103 Explosive 4458 | . 684 . 755 78 . . 877 737 . 1327 Electromagnetic 171 | . . . . . . . . . . 171 Impact . | . . . . . . . . . . . Slashing 495 | . . . . . . 150 . 167 . 178 Piercing . | . . . . . . . . . . . Highest Corruption 11 | . . . . . . . . 1 1 11 Average Corruption 3 | . . . . . . . . 1 1 6 Corruption Purged . | . . . . . . . . . . . Corruption Blocked . | . . . . . . . . . . . Effects 35 | . . . . . . . . 5 3 27 Message Errors 9 | . . . . . . . . 2 . 7 Matter Fused 6 | . . . . . . . . . 2 4 Heat Flow Errors 5 | . . . . . . . . 1 . 4 Energy Discharges 3 | . . . . . . . . . 1 2 Data Loss (minor) 2 | . . . . . . . . 1 . 1 Data Loss (major) 4 | . . . . . . . . 1 . 3 Misfires 1 | . . . . . . . . . . 1 Alerts 3 | . . . . . . . . . . 3 Weapon Failures 2 | . . . . . . . . . . 2 Overload Shots . | . . . . . . . . . . . Overflow Damage 187 | . 27 . 1 2 . . 11 25 . 121 Projectiles 41 | . . . . 2 . . . . . 39 Explosions 140 | . 27 . 1 . . . 11 25 . 76 Melee 6 | . . . . . . . . . . 6 Knockbacks 6 | . . . . . . . . . . 6 Impact . | . . . . . . . . . . . Kinetic 6 | . . . . . . . . . . 6 Secondary . | . . . . . . . . . . . Self-Inflicted Damage 219 | . 41 . 99 . . . 63 . . 16 Shots 10 | . 1 . 5 . . . 2 . . 2 Rammed . | . . . . . . . . . . . Targets Rammed 1 | . . . . 1 . . . . . . Kicked 1 | . . . . 1 . . . . . . Crushed . | . . . . . . . . . . . Highest Temperature 260 | . 3 . 21 11 . . 15 123 . 260 Average Temperature 66 | . 2 . 8 9 . . 9 29 . 98 Received Heat Transfer 810 | . 54 . 120 30 . 63 216 72 . 255 Siege Activations . | . . . . . . . . . . . Robots Corrupted . | . . . . . . . . . . . Combat Hostiles . | . . . . . . . . . . . Parts Fried . | . . . . . . . . . . . Impact Corruptions . | . . . . . . . . . . . Robots Melted 1 | . . . 1 . . . . . . . Combat Hostiles 1 | . . . 1 . . . . . . . Parts Melted 6 | . . . 4 . . . 1 . . 1 Heat Transferred 1691 | . . . 481 444 . 74 333 259 . 100 Parts Sabotaged . | . . . . . . . . . . . Parts Stolen . | . . . . . . . . . . . Parts Stripped . | . . . . . . . . . . . Power Chain Reactions 1 | . . . . . . . . . . 1 Alert | -11 -10 -10 -9 -9 -9 -8 -8 -8 -8 -6 ------- Run | Yrd Mat Min Mat Min Exi Min Mat Sto Rec Fac Peak Influence 359 | . 359 61 272 169 . 40 241 343 259 211 Initial 133 | . . 61 19 47 . . . 32 133 16 Average 77 | . 169 60 100 149 . 19 43 71 161 64 Maximum Alert Level 1 | . 1 . 1 . . . 1 1 1 1 Low Security (%) 88 | 100 53 100 92 100 . 100 98 81 63 99 Level 1 11 | . 46 . 7 . . . 1 18 36 . Level 2 . | . . . . . . . . . . . Level 3 . | . . . . . . . . . . . Level 4 . | . . . . . . . . . . . Level 5 . | . . . . . . . . . . . High Security . | . . . . . . . . . . . Max Security . | . . . . . . . . . . . Squads Dispatched 15 | . 1 . . . . . 3 1 . 10 Investigation 1 | . . . . . . . . . . 1 Extermination 3 | . . . . . . . . . . 3 Reinforcement 8 | . 1 . . . . . . 1 . 6 Assault . | . . . . . . . . . . . Garrison 3 | . . . . . . . 3 . . . Intercept . | . . . . . . . . . . . Searches Triggered . | . . . . . . . . . . . Construction Impeded 3 | . . . . . . . . 1 . 2 Haulers Reinforced . | . . . . . . . . . . . Active Scanning Responses . | . . . . . . . . . . . Cargo Convoy Interrupts . | . . . . . . . . . . . Stealth | -11 -10 -10 -9 -9 -9 -8 -8 -8 -8 -6 --------- Run | Yrd Mat Min Mat Min Exi Min Mat Sto Rec Fac Distress Signals 7 | . 1 . 1 . . . 2 3 . . Communications Jammed . | . . . . . . . . . . . Distress Signals . | . . . . . . . . . . . Times Spotted 116 | . 14 14 20 6 . 4 14 20 2 22 Peak Tracking Total 12 | . 7 12 5 4 . 3 6 5 1 8 Tactical Retreats 3 | . . . 1 . . . . . 1 1 Traps | -11 -10 -10 -9 -9 -9 -8 -8 -8 -8 -6 ------- Run | Yrd Mat Min Mat Min Exi Min Mat Sto Rec Fac Traps Triggered 3 | . . . . . . . . 1 . 2 Indirectly . | . . . . . . . . . . . Trap Hack Attempts . | . . . . . . . . . . . Triggered . | . . . . . . . . . . . Disarmed . | . . . . . . . . . . . Reprogrammed . | . . . . . . . . . . . Reused . | . . . . . . . . . . . Traps Extracted . | . . . . . . . . . . . Installed . | . . . . . . . . . . . Triggered 2 | . . . . . . . . 2 . . Machines | -11 -10 -10 -9 -9 -9 -8 -8 -8 -8 -6 ---------- Run | Yrd Mat Min Mat Min Exi Min Mat Sto Rec Fac Machines Disabled 10 | . 1 . 4 . . . 1 2 . 2 Max in Single Turn 1 | . 1 . 1 . . . 1 1 . 1 Garrison Access 2 | . . . . . . . . 1 . 1 Machines Repaired . | . . . . . . . . . . . Machines Dismantled . | . . . . . . . . . . . Machines Sabotaged . | . . . . . . . . . . . Overloaded Fab Kills . | . . . . . . . . . . . Hacking | -11 -10 -10 -9 -9 -9 -8 -8 -8 -8 -6 --------- Run | Yrd Mat Min Mat Min Exi Min Mat Sto Rec Fac Machines Accessed 20 | . 3 . 7 . . . 1 6 1 2 Terminals 14 | . 3 . 6 . . . 1 3 1 . Fabricators . | . . . . . . . . . . . Repair Stations 1 | . . . . . . . . 1 . . Recycling Units 1 | . . . . . . . . 1 . . Scanalyzers 2 | . . . 1 . . . . . . 1 Garrison Access 2 | . . . . . . . . 1 . 1 Total Hacks 45 | . 6 . 16 . . . 2 16 1 4 Successful 16 | . 2 . 3 . . . 2 6 . 3 Failed 29 | . 4 . 13 . . . . 10 1 1 Catastrophic 7 | . 2 . 4 . . . . 1 . . Database Lockouts . | . . . . . . . . . . . Manual 17 | . 3 . 10 . 1 . 1 1 1 . Terminals 28 | . 6 . 13 . . . 2 6 1 . Fabricators . | . . . . . . . . . . . Repair Stations 4 | . . . . . . . . 4 . . Recycling Units 3 | . . . . . . . . 3 . . Scanalyzers 5 | . . . 3 . . . . . . 2 Garrison Access 5 | . . . . . . . . 3 . 2 Terminal Hacks 7 | . 2 . 1 . . . 2 2 . . Record 1 | . . . . . . . 1 . . . Branch Access Points 1 | . 1 . . . . . . . . . Emergency Access Points 1 | . 1 . . . . . . . . . Unreport Threat 2 | . . . . . . . . 2 . . Dispatch Records 1 | . . . 1 . . . . . . . Recall Investigation 1 | . . . . . . . 1 . . . Fabricator Hacks . | . . . . . . . . . . . Repair Station Hacks 2 | . . . . . . . . 2 . . Scan Component 1 | . . . . . . . . 1 . . Repair 1 | . . . . . . . . 1 . . Recycling Unit Hacks 1 | . . . . . . . . 1 . . Retrieve Matter 1 | . . . . . . . . 1 . . Scanalyzer 4 | . . . 2 . . . . . . 2 Insert Component 2 | . . . 1 . . . . . . 1 Analyze 2 | . . . 1 . . . . . . 1 Garrison Access Hacks 2 | . . . . . . . . 1 . 1 Seal Access 2 | . . . . . . . . 1 . 1 Unauthorized Hacks . | . . . . . . . . . . . Terminals . | . . . . . . . . . . . Fabricators . | . . . . . . . . . . . Repair Stations . | . . . . . . . . . . . Recycling Units . | . . . . . . . . . . . Scanalyzers . | . . . . . . . . . . . Garrison Access . | . . . . . . . . . . . Data Cores Recovered . | . . . . . . . . . . . Used . | . . . . . . . . . . . Hacking Detections 16 | . 2 . 6 . . . 1 5 1 1 Full Trace Events . | . . . . . . . . . . . Feedback Events . | . . . . . . . . . . . Feedback Blocked . | . . . . . . . . . . . Robot Schematics Acquired . | . . . . . . . . . . . Robots Built . | . . . . . . . . . . . Authchips . | . . . . . . . . . . . Time . | . . . . . . . . . . . Total Robot Build Rating . | . . . . . . . . . . . Part Schematics Acquired 2 | . . . 1 . . . . . . 1 Parts Built . | . . . . . . . . . . . Authchips . | . . . . . . . . . . . Time . | . . . . . . . . . . . Total Part Build Rating . | . . . . . . . . . . . Parts Repaired 1 | . . . . . . . . 1 . . Time 32 | . . . . . . . . 32 . . Parts Recycled . | . . . . . . . . . . . Recycled Matter . | . . . . . . . . . . . Retrieved Matter . | . . . . . . . . . . . Retrieved Components . | . . . . . . . . . . . Parts Scanalyzed 2 | . . . 1 . . . . . . 1 Part Schematics Acquired 2 | . . . 1 . . . . . . 1 Parts Damaged . | . . . . . . . . . . . Bothacking | -11 -10 -10 -9 -9 -9 -8 -8 -8 -8 -6 ------------ Run | Yrd Mat Min Mat Min Exi Min Mat Sto Rec Fac Used RIF Installer . | . . . . . . . . . . . Robots Hacked . | . . . . . . . . . . . Non-combat . | . . . . . . . . . . . Combat . | . . . . . . . . . . . Robot Hacks Applied . | . . . . . . . . . . . Relay Couplers Released . | . . . . . . . . . . . Fabnet Peak Effective % . | . . . . . . . . . . . Robots Rewired . | . . . . . . . . . . . Allies Hacked . | . . . . . . . . . . . Hacks Repelled . | . . . . . . . . . . . Allies | -11 -10 -10 -9 -9 -9 -8 -8 -8 -8 -6 -------- Run | Yrd Mat Min Mat Min Exi Min Mat Sto Rec Fac Total Allies 12 | . . . . . . . . 12 . . Largest Group 11 | . . . . . . . . 11 8 . Highest-Rated Group 273 | . . . . . . . . 273 136 . Highest-Rated Ally 100 | . . . . . . . . 100 29 . Total Orders 1 | . . . . . . . . . 1 . ROAM 1 | . . . . . . . . . 1 . Ally Attacks 86 | . . . . . . . . 50 36 . Total Damage 1706 | . . . . . . . . 1168 538 . Kills 19 | . . . . . . . . 12 7 . Allies Corrupted 1 | . . . . . . . . 1 . . Allies Melted . | . . . . . . . . . . . Intel | -11 -10 -10 -9 -9 -9 -8 -8 -8 -8 -6 ------- Run | Yrd Mat Min Mat Min Exi Min Mat Sto Rec Fac Robot Analysis Total . | . . . . . . . . . . . Derelict Logs Recovered 2 | . . 1 . 1 . . . . . . Drone Launches . | . . . . . . . . . . . Drone Recoveries . | . . . . . . . . . . . Exploration | -11 -10 -10 -9 -9 -9 -8 -8 -8 -8 -6 ------------- Run | Yrd Mat Min Mat Min Exi Min Mat Sto Rec Fac Turns Passed 9553 | 79 437 382 917 255 308 787 561 2938 545 2344 Spaces Moved 5035 | 42 223 238 609 169 250 423 288 1096 423 1274 Core 32 | 10 . . . . . . 7 . . 15 Treads 1246 | 32 223 238 151 . . 413 179 . . 10 Legs 3755 | . . . 458 169 250 10 102 1096 423 1247 Wheels . | . . . . . . . . . . . Hover . | . . . . . . . . . . . Flight 2 | . . . . . . . . . . 2 Fastest Speed 40 | 50 160 160 120 120 120 120 120 120 120 40 Average Speed 131 | 160 160 160 129 120 120 160 148 120 120 127 Slowest Speed 260 | 250 160 160 160 120 120 190 200 120 120 260 Overloaded Moves . | . . . . . . . . . . . Propulsion Burnouts . | . . . . . . . . . . . Robots Hopped . | . . . . . . . . . . . Cave-ins Triggered . | . . . . . . . . . . . Exploration Rate (%) 47 | 4 48 55 39 29 61 81 25 94 71 12 Regions Visited 10 Branch Regions 6 Pre-discovered Areas 1 | . . 1 . . . . . . . . Known Exits Taken 1 | . 1 . . . . . . . . . Unknown Exits Taken 9 | 1 . 1 1 1 1 1 1 1 1 . Scrap Searched 4 | . . 1 . 2 . 1 . . . . Spaces Dug 15 | . . . . 15 . . . . . . Terrain Destroyed 336 | . 52 . 59 15 . . 53 59 . 98 Melee . | . . . . . . . . . . . Projectile 6 | . . . . . . . . . . 6 AOE 330 | . 52 . 59 15 . . 53 59 . 92 Terrain Rammed . | . . . . . . . . . . . Walls Destroyed . | . . . . . . . . . . . Machines Disabled . | . . . . . . . . . . . Actions | -11 -10 -10 -9 -9 -9 -8 -8 -8 -8 -6 --------- Run | Yrd Mat Min Mat Min Exi Min Mat Sto Rec Fac Total 7686 | 51 273 240 690 200 257 526 397 2685 461 1906 Wait 2292 | . 13 . 25 7 . 87 80 1536 32 512 Move 5025 | 41 222 237 608 168 249 422 287 1095 422 1274 Hop . | . . . . . . . . . . . Pick Up 49 | 4 7 1 7 . . 5 4 10 3 8 Fast Attach 40 | 5 2 . 1 2 4 1 2 8 . 15 Attach 27 | 1 . 1 5 . 1 4 5 2 . 8 Detach . | . . . . . . . . . . . Swap 9 | . . . 3 2 . . . 2 1 1 Drop 39 | . 3 1 4 1 3 1 1 11 3 11 Fire 193 | . 26 . 37 19 . 2 18 18 . 73 Melee 11 | . . . . . . 4 . 3 . 4 Ram . | . . . . . . . . . . . Kick 1 | . . . . 1 . . . . . . Crush . | . . . . . . . . . . . Escape Stasis . | . . . . . . . . . . . Rewire . | . . . . . . . . . . . Trap . | . . . . . . . . . . . Miscellaneous . | . . . . . . . . . . . Route ------- -11/Scrapyard -10/Materials (discovered 2 exits: *Min x2) -10/Mines -9/Materials (discovered 2 exits: *Mat / [*Min]) -9/Mines (discovered 3 exits: *Mat x2 / *Exi) -9/Exiles -8/Mines (discovered 2 exits: *Mat x2) -8/Materials (discovered 2 exits: Fac / *Sto) -8/Storage (discovered 2 exits: *Fac / *Rec) -8/Recycling -6/Factory (discovered 1 exit: [*Fac]) History --------- Turn | Location | Event 20 | -11/Scrapyard | Discovered new exit (range 16) 80 | -11/Scrapyard | Entered Materials 328 | -10/Materials | Build established: Mutant 372 | -10/Materials | Identified exit to Mines 517 | -10/Materials | Entered Mines 629 | -10/Mines | Learned location of Storage (-8) 759 | -10/Mines | A weapon hastily lodged in a ceiling crevice suddenly fell to the ground 799 | -10/Mines | Discovered new exit (range 15) 829 | -10/Mines | Learned Materials security intel 864 | -10/Mines | Assembled infested the area 899 | -10/Mines | Entered Materials 899 | -9/Materials | Evolved 2 slots: Propulsion x1, Utility x1 986 | -9/Materials | Discovered new exit (range 6) 1222 | -9/Materials | Discovered new exit (range 5) 1816 | -9/Materials | Entered Mines 1856 | -9/Mines | Discovered new exit (range 5) 1868 | -9/Mines | Discovered new exit (range 11) 1924 | -9/Mines | Lost 3 parts (1n1u1w) 2065 | -9/Mines | Deemed a non-threat by the Exiles lab entrance 2066 | -9/Mines | Discovered new exit (range 5) 2071 | -9/Mines | Entered Exiles 2099 | -9/Exiles | Met 8R-AWN 2139 | -9/Exiles | Met EX-HEX 2172 | -9/Exiles | Met EX-BIN 2188 | -9/Exiles | Aligned with FarCom system 2189 | -9/Exiles | Given EX-Vault access code 2218 | -9/Exiles | Opened EX-Vault 2227 | -9/Exiles | Found Prototype Slashing Weapon 2227 | -9/Exiles | Identified Longsword +1 2232 | -9/Exiles | Found Prototype Energy Gun 2232 | -9/Exiles | Identified AWS/Thermal 2266 | -9/Exiles | Warned to stay clear of 0b10 Research branches 2274 | -9/Exiles | Exiles lab attacked by MAIN.C 2369 | -9/Exiles | Discovered new exit (range 10) 2379 | -9/Exiles | Left Exiles lab with Longsword +1 2379 | -9/Exiles | Entered Mines 2420 | -8/Mines | Lost 3 parts (1p2n) 2878 | -8/Mines | Discovered new exit (range 8) 2920 | -8/Mines | Discovered new exit (range 5) 3166 | -8/Mines | Entered Materials 3166 | -8/Materials | Evolved 2 slots: Propulsion x1, Weapon x1 3167 | -8/Materials | Identified exit to Factory 3592 | -8/Materials | Lost 8 parts (1p3n2u2w) 3660 | -8/Materials | Discovered new exit (range 11) 3727 | -8/Materials | Entered Storage 3938 | -8/Storage | Build established: Scavenger-Mutant 4246 | -8/Storage | Build established: Mutant 4629 | -8/Storage | Build established: Scavenger-Mutant 5832 | -8/Storage | Discovered exit to Factory (range 9) 5849 | -8/Storage | Met 01-MTF 6032 | -8/Storage | Repaired Rocket Launcher 6163 | -8/Storage | Assisted by bots powering up and referring to "LRC-V3" 6466 | -8/Storage | Build established: Commander-Mutant 6515 | -8/Storage | Discovered new exit (range 4) 6665 | -8/Storage | Entered Recycling 6665 | -8/Recycling | Accompanied by 9 allies (01-MTF) 6670 | -8/Recycling | 01-MTF left 7041 | -8/Recycling | Discovered new exit (range 15) 7128 | -8/Recycling | Build established: Scavenger-Mutant 7210 | -8/Recycling | Entered Factory 7210 | -6/Factory | Evolved 4 slots: Power x1, Propulsion x1, Utility x2 8963 | -6/Factory | Build established: Mutant 9049 | -6/Factory | Destroyed 7 combat bots 9055 | -6/Factory | System corruption reached 10% 9089 | -6/Factory | Lost 16 parts (5p3n4u4w) 9275 | -6/Factory | Build established: Scavenger-Bomber 9533 | -6/Factory | Discovered new exit (range 9) 9543 | -6/Factory | Core integrity fell below 50% 9549 | -6/Factory | Core integrity fell below 20% 9554 | -6/Factory | Destroyed by H-61 Shepherd with Heavy Assault Cannon Last Messages --------------- 09540_ Dropped Lgt. Nuclear Core. 09541_ U-05 Engineer builds a Wall. 09541_ K-01 Serf collects debris. 09541_ Dropped Flexi-carbon Leg. 09542_ Knocked back. 09543_ Dropped Triangulator. 09543_ R-10 Processor collects Lgt. Nuclear Core. 09544_ U-05 Engineer builds a Wall. 09544_ Nuclear Pulse Thruster destroyed. 09544_ Critical hit (Blast). 09545_ U-05 Engineer lays Concrete. 09546_ U-05 Engineer builds a Wall. 09548_ Penetrated by Slug. 09549_ U-05 Engineer lays Concrete. 09550_ Acquired 130 matter. 09550_ Slug penetrates Wall. 09550_ U-05 Engineer builds a Wall. 09552_ Slug penetrates Wall. 09554_ Mic. Nuclear Core destroyed. 09554_ Critical hit (Blast). Map ----- +----------------------------------------------------+ | | | | | ????????????????????????????????????############## | | ????????????????????????????????????# | | ????????????????????????????????????# """""""" | | ????????????????????????????????????# | | ????????????????????????????????????# [ | | ????????????????????????????????????# [ | | ????????????????????????????????????# [ | | ????????????????????????????????????# | | ??????????????????????? ????????????# """""""" | | ??????????????????????? ?????? ?????# [ | | ??????????????????????? ?????? ?############+#### | | ??????????????????????? ????? ?# # | | ??????????????????????? ????? ?# """" # ## | | ???????????????????????# # """ ?# """" # # | | ???????????????????????# # """ ?# """" + # | | ???????????????????????# ? """ ??# """" # ## | | ???????????????????????#k?? ??# """" # ## | | ???????????????????????# ??? ??# """" # ## | | ?????????????????????### ####/#### """" # T# | | ?????????????????????# ## # ## # # | | ?????????????????????# R # ########### ## | | ?????????????????????#